fUST/lending_fUST_20250810
["ID","MTS","AMOUNT","RATE_DAILY","PERIOD"]
[378342724,1754833842460,-460.0,0.00023832,2]
[378342726,1754833842469,-1658.17153365,0.000239,2]
[378342728,1754833842479,-884.16705645,0.00023921,2]
[378342730,1754833842489,-174.89,0.00023945,5]
[378342732,1754833842498,-150.0,0.00023959,2]
[378342734,1754833842508,-500.0,0.00023973,2]
[378342736,1754833842517,-500.0,0.00023973,2]
[378342738,1754833842527,-500.0,0.00023973,2]
[378342740,1754833842537,-500.0,0.00023973,2]
[378342742,1754833842546,-500.0,0.00023973,2]
[378342744,1754833842555,-573.52765742,0.00023973,2]
[378342746,1754833842564,-500.0,0.00023973,2]
[378342748,1754833842574,-500.0,0.00023973,2]
[378342750,1754833842583,-500.0,0.00023973,2]
[378342753,1754833842593,-500.0,0.00023973,2]
[378342755,1754833842602,-138701.12727659,0.00023998,2]
[378342759,1754833842611,-168.17316064,0.00023999,2]
[378342761,1754833842621,-500.0,0.00023999,2]
[378342763,1754833842630,-500.0,0.00023999,2]
[378342765,1754833842641,-500.0,0.00023999,2]
[378342767,1754833842652,-500.0,0.00023999,2]
[378342769,1754833842661,-500.0,0.00023999,2]
[378342771,1754833842670,-151.0,0.00024,9]
[378342773,1754833842680,-151.0,0.00024,9]
[378342775,1754833842689,-382.0,0.00024065,3]
[378342776,1754833842699,-663.46,0.00024099,2]
[378342779,1754833842708,-460.0,0.00024103,2]
[378342780,1754833842718,-831.43,0.00024103,2]
[378342782,1754833842727,-714.06,0.00024103,2]
[378342785,1754833842737,-699.13,0.00024104,2]
[378342787,1754833842747,-460.0,0.00024104,2]
[378342788,1754833842757,-645.11,0.00024104,2]
[378342790,1754833842767,-460.0,0.00024104,2]
[378342793,1754833842777,-673.21,0.00024104,2]
[378342795,1754833842786,-628.27,0.00024104,2]
[378342796,1754833842798,-1890.56,0.00024105,2]
[378342798,1754833842813,-490.86,0.00024106,2]
[378342800,1754833842831,-591.72,0.00024106,2]
[378342802,1754833842841,-550.77,0.00024106,2]
[378342804,1754833842850,-586.42000003,0.00024106,2]
[378342806,1754833842861,-460.0,0.00024106,2]
[378342808,1754833842871,-151.0,0.00024109,7]
[378342810,1754833842880,-167.0,0.00024164,7]
[378342812,1754833842891,-360.0,0.00024172,2]
[378342814,1754833842900,-512.0,0.00024214,2]
[378342816,1754833842909,-1611.14129486,0.00024254,2]
[378342817,1754833842919,-1500.0,0.0002432,2]
[378342818,1754833842928,-283.94114085,0.00024356,13]
[378342819,1754833842938,-1491.99,0.00024369,2]
[378342820,1754833842948,-663.46,0.00024373,2]
[378342821,1754833842958,-460.0,0.00024377,2]
[378342822,1754833842967,-831.43,0.00024377,2]
[378342823,1754833842976,-714.06,0.00024377,2]
[378342824,1754833842986,-699.13,0.00024378,2]
[378342825,1754833842995,-228.40360621,0.00024378,2]
[378342826,1754833843004,-645.11,0.00024378,2]
[378342827,1754833843014,-460.0,0.00024378,2]
[378342828,1754833843023,-673.21,0.00024378,2]
[378342829,1754833843033,-628.27,0.00024378,2]
[378342830,1754833843042,-1890.56,0.00024379,2]
[378342831,1754833843051,-490.86,0.0002438,2]
[378342832,1754833843060,-591.72,0.0002438,2]
[378342833,1754833843070,-550.77,0.0002438,2]
[378342834,1754833843079,-460.0,0.0002438,2]
[378342835,1754833843089,-151.0,0.00024383,2]
[378342836,1754833843098,-4288.69334171,0.00024383,2]
[378342837,1754833843107,-151.0,0.00024383,7]
[378342838,1754833843116,-151.0,0.00024383,7]
[378342840,1754833843125,-297.030086,0.00024383,7]
[378342842,1754833843135,-297.030086,0.00024383,7]
[378342844,1754833843144,-151.0,0.000244,8]
[378342846,1754833843153,-151.0,0.000244,6]
[378342848,1754833843163,-171.64,0.00024513,2]
[378342850,1754833843172,-1000.0,0.00024521,2]
[378342852,1754833843181,-1000.0,0.00024521,2]
[378342854,1754833843190,-1000.0,0.00024521,2]
[378342856,1754833843199,-1000.0,0.00024521,2]
[378342858,1754833843208,-500.0,0.00024521,2]
[378342860,1754833843218,-504.29023985,0.00024521,2]
[378342862,1754833843227,-1000.0,0.00024521,2]
[378342864,1754833843236,-2871.0,0.00024541,2]
[378342866,1754833843246,-408.0,0.00024609,2]
[378342868,1754833843255,-416.045,0.00024609,2]
[378342870,1754833843264,-971.0,0.00024609,2]
[378342872,1754833843274,-2150.0,0.00024609,2]
[378342874,1754833843287,-636.0,0.00024609,2]
[378342876,1754833843296,-261.408448,0.00024638,2]
[378342878,1754833843306,-200.0,0.0002464,11]
[378342880,1754833843316,-5618.47564054,0.00024642,2]
[378342882,1754833843326,-8579.57821561,0.00024642,2]
[378342884,1754833843335,-467.78191274,0.00024642,2]
[378342886,1754833843345,-1871.12765094,0.00024642,2]
[378342888,1754833843355,-5170.51617663,0.00024642,2]
[378342890,1754833843365,-6204.97543062,0.00024642,2]
[378342892,1754833843375,-770.69379661,0.00024642,2]
[378342894,1754833843385,-663.46,0.00024647,2]
[378342896,1754833843394,-151.0,0.0002465,7]
[378342898,1754833843404,-151.0,0.0002465,7]
[378342900,1754833843413,-297.030086,0.0002465,7]
[378342902,1754833843423,-297.030086,0.0002465,7]
[378342904,1754833843431,-460.0,0.00024651,2]
[378342905,1754833843441,-831.43,0.00024651,2]
[378342907,1754833843451,-714.06,0.00024651,2]
[378342909,1754833843460,-699.13,0.00024652,2]
[378342912,1754833843470,-645.11,0.00024652,2]
[378342914,1754833843480,-460.0,0.00024652,2]
[378342915,1754833843489,-673.21,0.00024652,2]
[378342917,1754833843500,-628.27,0.00024652,2]
[378342920,1754833843510,-1890.56,0.00024653,2]
[378342921,1754833843519,-490.86,0.00024654,2]
[378342924,1754833843529,-591.72,0.00024654,2]
[378342925,1754833843538,-550.77,0.00024654,2]
[378342927,1754833843547,-460.0,0.00024654,2]
[378342929,1754833843557,-207.51,0.00024657,2]
[378342931,1754833843566,-5142.33,0.00024657,4]
[378342933,1754833843575,-293.980179,0.00024658,2]
[378342935,1754833843585,-151.42549146,0.00024658,2]
[378342938,1754833843594,-151.0,0.00024658,2]
[378342939,1754833843604,-151.0,0.00024658,2]
[378342941,1754833843613,-151.0,0.00024658,2]
[378342944,1754833843623,-151.0,0.00024658,2]
[378342946,1754833843633,-152.59746952,0.00024658,2]
[378342948,1754833843644,-151.27897563,0.00024658,2]
[378342949,1754833843653,-151.0,0.00024658,2]
[378342951,1754833843662,-500.0,0.00024658,2]
[378342953,1754833843671,-246.21855914,0.00024658,2]
[378342955,1754833843681,-382.0,0.00024708,3]
[378342957,1754833843691,-460.0,0.0002472,2]
[378342959,1754833843700,-151.4297,0.00024776,2]
[378342961,1754833843712,-172.00826619,0.000248,2]
[378342963,1754833843722,-68458.5376732,0.000248,2]
[378342975,1754833843827,-884.16705645,0.00024807,2]
[378342977,1754833843838,-3568.86138304,0.00024811,2]
[378342979,1754833843847,-1756.82829048,0.00024868,2]
[378342981,1754833843857,-500.0,0.00024873,2]
[378342983,1754833843866,-150.0,0.00024873,2]
[378342985,1754833843875,-500.0,0.00024873,2]
[378342987,1754833843884,-500.0,0.00024873,2]
[378342989,1754833843894,-150.0,0.00024873,2]
[378342991,1754833843903,-45639.0251154,0.0002489,2]
[378342993,1754833843913,-200.256263,0.000249,7]
[378342995,1754833843922,-200.256263,0.000249,7]
[378342997,1754833843931,-151.0,0.000249,7]
[378342999,1754833843941,-151.0,0.000249,7]
[378343001,1754833843951,-151.0,0.000249,7]
[378343003,1754833843960,-1759.0,0.000249,3]
[378343005,1754833843969,-160.0,0.000249,3]
[378343007,1754833843978,-160.0,0.000249,3]
[378343009,1754833843988,-160.0,0.000249,3]
[378343011,1754833843998,-1759.0,0.000249,3]
[378343013,1754833844007,-160.0,0.000249,3]
[378343015,1754833844017,-160.0,0.000249,3]
[378343016,1754833844026,-1759.0,0.000249,3]
[378343019,1754833844036,-170.1117116,0.000249,3]
[378343021,1754833844045,-1759.0,0.000249,3]
[378343022,1754833844055,-1759.0,0.000249,3]
[378343024,1754833844065,-1222.33469865,0.000249,3]
[378343026,1754833844075,-1131.93983378,0.000249,2]
[378343028,1754833844084,-1759.0,0.000249,3]
[378343030,1754833844094,-1759.0,0.000249,3]
[378343032,1754833844103,-160.0,0.000249,3]
[378343034,1754833844112,-1759.0,0.000249,3]
[378343037,1754833844122,-160.0,0.000249,3]
[378343039,1754833844132,-1759.0,0.000249,3]
[378343040,1754833844142,-160.0,0.000249,3]
[378343042,1754833844151,-152.0,0.000249,3]
[378343044,1754833844161,-152.0,0.000249,3]
[378343046,1754833844170,-152.0,0.000249,3]
[378343048,1754833844179,-237.72006043,0.000249,3]
[378343050,1754833844189,-297.030086,0.000249,7]
[378343052,1754833844199,-297.030086,0.000249,7]
[378343054,1754833844208,-44243.15275031,0.000249,2]
[378343195,1754833845683,-4178.70000001,0.000249,2]
[378343196,1754833845740,-556.33,0.00021091,2]
[378343197,1754833845750,-556.33,0.00021365,2]
[378343198,1754833845759,-208001.41565679,0.000249,2]
[378343282,1754833846594,-8970.878757,0.000249,2]
[378343292,1754833846686,-283.65690581,0.00019993,2]
[378343297,1754833846742,-282.21309419,0.00019993,2]
[378343299,1754833846752,-460.0,0.00019993,2]
[378343301,1754833846761,-556.33,0.00021639,2]
[378343303,1754833846771,-556.33,0.00021913,2]
[378343305,1754833846781,-556.33,0.00022187,2]
[378343307,1754833846791,-556.33,0.00022461,2]
[378343309,1754833846801,-205.26690581,0.00022735,2]
[378343311,1754833846812,-351.06309419,0.00022735,2]
[378343313,1754833846822,-556.33,0.00023009,2]
[378343315,1754833846831,-556.33,0.00023283,2]
[378343317,1754833846841,-556.33,0.00023557,2]
[378343319,1754833846850,-4760.49644399,0.00023672,2]
[378351936,1754833939347,4423.62856698,0.000199,2]
[378352793,1754833968498,2944.0,0.000199,2]
[378352797,1754834114969,4276.17428124,0.000199,2]
[378352798,1754834122240,1790.01759039,0.00019901,2]
[378352799,1754834132447,283.084153,0.00019692,2]
[378352801,1754834154647,208.9292582,0.00019692,2]
[378352803,1754834287763,1160.78450279,0.000199,2]
[378352804,1754834287795,3095.02695839,0.000199,2]
[378352805,1754834391596,415.913676,0.00013699,2]
[378352806,1754834395784,2795.52,0.00031447,30]
[378352808,1754834414700,216.15534032,0.00019395,2]
[378352814,1754834487819,4171.99858834,0.000199,2]
[378352815,1754834508790,12100.90543695,0.00019413,2]
[378352816,1754834508815,12799.09456305,0.00019413,2]
[378352817,1754834674617,200.2017017,0.000196,2]
[378352818,1754834688410,4196.0214108,0.000199,2]
[378352820,1754834726906,2804.68232445,0.00019627,2]
[378352821,1754834726931,270.26777595,0.00019627,2]
[378352823,1754834829093,-460.0,0.00019993,2]
[378352824,1754834829121,-454.69237599,0.00019993,2]
[378352825,1754834829145,-460.0,0.00019993,2]
[378352826,1754834829172,-460.0,0.00019993,2]
[378352827,1754834829195,-197.02913577,0.00019994,2]
[378352828,1754834829220,-460.0,0.00019994,2]
[378352829,1754834829244,-460.0,0.00019994,2]
[378352830,1754834829268,-460.0,0.00019994,2]
[378352831,1754834829295,-460.0,0.00019994,2]
[378352832,1754834829322,-913.88,0.00019994,2]
[378352833,1754834829346,-460.0,0.00019994,2]
[378352834,1754834829369,-460.0,0.00019994,2]
[378352835,1754834829392,-460.0,0.00019995,2]
[378352836,1754834829415,-460.0,0.00019995,2]
[378352837,1754834829438,-460.0,0.00019995,2]
[378352838,1754834829461,-460.0,0.00019995,2]
[378352839,1754834829483,-460.0,0.00019995,2]
[378352840,1754834829508,-460.0,0.00019995,2]
[378352841,1754834829530,-151.45747123,0.0002,2]
[378352842,1754834829553,-415.913676,0.00020187,2]
[378352843,1754834829574,-460.0,0.00020267,2]
[378352844,1754834829599,-460.0,0.00020267,2]
[378352845,1754834829623,-207.4933236,0.00020267,2]
[378352846,1754834829645,-460.0,0.00020268,2]
[378352847,1754834829669,-460.0,0.00020268,2]
[378352848,1754834829691,-460.0,0.00020268,2]
[378352849,1754834829714,-460.0,0.00020268,2]
[378352850,1754834829744,-913.88,0.00020268,2]
[378352851,1754834829770,-460.0,0.00020268,2]
[378352852,1754834829797,-460.0,0.00020269,2]
[378352853,1754834829830,-460.0,0.00020269,2]
[378352854,1754834829857,-460.0,0.00020269,2]
[378352855,1754834829885,-460.0,0.00020269,2]
[378352856,1754834829909,-460.0,0.00020269,2]
[378352857,1754834829935,-460.0,0.00020269,2]
[378352858,1754834829958,-460.0,0.0002054,2]
[378352859,1754834829984,-460.0,0.0002054,2]
[378352860,1754834830010,-460.0,0.0002054,2]
[378352861,1754834830035,-460.0,0.0002054,2]
[378352862,1754834830060,-460.0,0.0002054,2]
[378352863,1754834830085,-508.29114577,0.0002054,2]
[378352864,1754834830110,-460.0,0.0002054,2]
[378352865,1754834830133,-460.0,0.0002054,2]
[378352866,1754834830156,-460.0,0.00020541,2]
[378352867,1754834830178,-460.0,0.00020541,2]
[378352868,1754834830203,-460.0,0.00020541,2]
[378352869,1754834830227,-460.0,0.00020541,2]
[378352870,1754834830251,-460.0,0.00020542,2]
[378352871,1754834830274,-460.0,0.00020542,2]
[378352872,1754834830295,-460.0,0.00020542,2]
[378352873,1754834830318,-460.0,0.00020542,2]
[378352874,1754834830343,-913.88,0.00020542,2]
[378352875,1754834830365,-460.0,0.00020542,2]
[378352876,1754834830388,-460.0,0.00020543,2]
[378352877,1754834830411,-460.0,0.00020543,2]
[378352878,1754834830434,-460.0,0.00020543,2]
[378352879,1754834830457,-460.0,0.00020543,2]
[378352880,1754834830480,-460.0,0.00020543,2]
[378352881,1754834830503,-460.0,0.00020543,2]
[378352882,1754834830527,-460.0,0.00020814,2]
[378352883,1754834830550,-460.0,0.00020814,2]
[378352884,1754834830572,-460.0,0.00020814,2]
[378352885,1754834830596,-460.0,0.00020814,2]
[378352886,1754834830620,-460.0,0.00020814,2]
[378352887,1754834830642,-170.76069636,0.00020815,2]
[378352888,1754834830664,-460.70790734,0.00020815,2]
[378352889,1754834830688,-460.0,0.00020815,2]
[378352890,1754834830710,-460.0,0.00020815,2]
[378352891,1754834830736,-460.0,0.00020816,2]
[378352892,1754834830758,-460.0,0.00020816,2]
[378352893,1754834830781,-460.0,0.00020816,2]
[378352894,1754834830807,-913.88,0.00020816,2]
[378352895,1754834830830,-460.0,0.00020816,2]
[378352896,1754834830991,-460.0,0.00020817,2]
[378352897,1754834831015,-460.0,0.00020817,2]
[378352898,1754834831040,-460.0,0.00020817,2]
[378352899,1754834831064,-460.0,0.00020817,2]
[378352900,1754834831086,-165.51000003,0.00020817,2]
[378352901,1754834831111,-460.0,0.00020817,2]
[378352902,1754834831136,-1000.0,0.00020985,2]
[378352903,1754834831162,-200.0,0.00020992,15]
[378352904,1754834831187,-300.0,0.00020992,15]
[378352905,1754834831210,-460.0,0.00021088,2]
[378352906,1754834831234,-460.0,0.00021088,2]
[378352907,1754834831257,-460.0,0.00021088,2]
[378352908,1754834831280,-228.40360621,0.00021088,2]
[378352909,1754834831304,-460.0,0.00021088,2]
[378352910,1754834831328,-460.0,0.00021089,2]
[378352911,1754834831352,-460.0,0.00021089,2]
[378352912,1754834831375,-460.0,0.0002109,2]
[378352913,1754834831397,-535.15,0.0002109,2]
[378352914,1754834831420,-913.88,0.0002109,2]
[378352915,1754834831444,-460.0,0.0002109,2]
[378352916,1754834831468,-460.0,0.00021091,2]
[378352917,1754834831493,-460.0,0.00021091,2]
[378352918,1754834831517,-460.0,0.00021091,2]
[378352919,1754834831542,-460.0,0.00021091,2]
[378352920,1754834831566,-460.0,0.00021091,2]
[378352921,1754834831590,-501.6936613,0.00021194,2]
[378352922,1754834831612,-561.06729624,0.000213,2]
[378352923,1754834831636,-460.0,0.00021362,2]
[378352924,1754834831662,-460.0,0.00021362,2]
[378352925,1754834831689,-460.0,0.00021362,2]
[378352926,1754834831715,-460.0,0.00021362,2]
[378352927,1754834831745,-460.0,0.00021363,2]
[378352928,1754834831771,-460.0,0.00021363,2]
[378352929,1754834831795,-460.0,0.00021364,2]
[378352930,1754834831822,-913.88,0.00021364,2]
[378352931,1754834831847,-460.0,0.00021364,2]
[378352932,1754834831872,-460.0,0.00021365,2]
[378352933,1754834831897,-460.0,0.00021365,2]
[378352934,1754834831922,-460.0,0.00021365,2]
[378352935,1754834831949,-460.0,0.00021365,2]
[378352936,1754834831975,-460.0,0.00021365,2]
[378352937,1754834831998,-181.049888,0.00021384,2]
[378352938,1754834832020,-500.0,0.00021414,2]
[378352939,1754834832043,-160.0,0.00021489,2]
[378352940,1754834832065,-160.0,0.00021489,2]
[378352941,1754834832088,-160.0,0.00021489,2]
[378352942,1754834832111,-160.0,0.00021489,2]
[378352943,1754834832136,-216.64838636,0.00021489,2]
[378352944,1754834832174,-843.0869304,0.00021489,2]
[378352945,1754834832214,-527.86640923,0.00021489,2]
[378352946,1754834832244,-160.0,0.00021489,2]
[378352947,1754834832268,-231.96268195,0.00021489,2]
[378352948,1754834832291,-12668.57659669,0.00021489,2]
[378352949,1754834832314,-215.44987349,0.00021489,2]
[378352950,1754834832339,-461.62346162,0.00021489,2]
[378352951,1754834832362,-160.0,0.00021489,2]
[378352952,1754834832385,-312.16666667,0.00021489,2]
[378352953,1754834832408,-460.0,0.00021636,2]
[378352954,1754834832432,-460.0,0.00021636,2]
[378352955,1754834832456,-460.0,0.00021636,2]
[378352956,1754834832487,-460.0,0.00021636,2]
[378352957,1754834832514,-460.0,0.00021637,2]
[378352958,1754834832539,-460.0,0.00021637,2]
[378352959,1754834832565,-913.88,0.00021638,2]
[378352960,1754834832590,-460.0,0.00021638,2]
[378352961,1754834832614,-460.0,0.00021639,2]
[378352962,1754834832638,-460.0,0.00021639,2]
[378352963,1754834832662,-460.0,0.00021639,2]
[378352964,1754834832685,-460.0,0.00021639,2]
[378352965,1754834832708,-460.0,0.00021639,2]
[378352966,1754834832741,-4196.02141074,0.00021655,2]
[378352967,1754834832766,-460.0,0.0002191,2]
[378352968,1754834832794,-460.0,0.0002191,2]
[378352969,1754834832819,-460.0,0.0002191,2]
[378352970,1754834832843,-460.0,0.0002191,2]
[378352971,1754834832868,-460.0,0.00021911,2]
[378352972,1754834832892,-460.0,0.00021911,2]
[378352973,1754834832918,-913.88,0.00021912,2]
[378352974,1754834832942,-460.0,0.00021912,2]
[378352975,1754834832968,-460.0,0.00021913,2]
[378352976,1754834832995,-460.0,0.00021913,2]
[378352977,1754834833020,-460.0,0.00021913,2]
[378352978,1754834833044,-460.0,0.00021913,2]
[378352979,1754834833071,-460.0,0.00021913,2]
[378352980,1754834833093,-500.0,0.00021917,2]
[378352981,1754834833117,-500.0,0.00021917,2]
[378352982,1754834833139,-500.0,0.00021917,2]
[378352983,1754834833161,-1000.0,0.00021962,2]
[378352984,1754834833186,-460.0,0.00022184,2]
[378352985,1754834833213,-460.0,0.00022184,2]
[378352986,1754834833238,-396.69945743,0.00022184,2]
[378352987,1754834833261,-4928.07,0.00022184,2]
[378352988,1754834833284,-396.94873622,0.00022184,2]
[378352989,1754834833307,-460.0,0.00022185,2]
[378352990,1754834833330,-460.0,0.00022185,2]
[378352991,1754834833354,-460.0,0.00022185,2]
[378352992,1754834833377,-460.0,0.00022185,2]
[378352993,1754834833399,-460.0,0.00022185,2]
[378352994,1754834833420,-460.0,0.00022185,2]
[378352995,1754834833444,-913.88,0.00022186,2]
[378352996,1754834833467,-460.0,0.00022186,2]
[378352997,1754834833493,-460.0,0.00022187,2]
[378352998,1754834833516,-460.0,0.00022187,2]
[378352999,1754834833540,-460.0,0.00022187,2]
[378353000,1754834833563,-460.0,0.00022187,2]
[378353001,1754834833585,-460.0,0.00022458,2]
[378353002,1754834833609,-460.0,0.00022458,2]
[378353003,1754834833632,-887.68,0.00022458,2]
[378353004,1754834833654,-460.0,0.00022459,2]
[378353005,1754834833677,-460.0,0.00022459,2]
[378353006,1754834833701,-460.0,0.00022459,2]
[378353007,1754834833727,-460.0,0.00022459,2]
[378353008,1754834833750,-460.0,0.00022459,2]
[378353009,1754834833777,-460.0,0.00022459,2]
[378353010,1754834833802,-913.88,0.0002246,2]
[378353011,1754834833828,-460.0,0.0002246,2]
[378353012,1754834833852,-504.30393257,0.00022461,2]
[378353013,1754834833876,-341.80572783,0.00022461,2]
[378353014,1754834861941,3916.28665014,0.000199,2]
[378353016,1754834952103,-460.0,0.00019994,2]
[378353017,1754834952128,-460.0,0.00019994,2]
[378353018,1754834952152,-460.0,0.00020268,2]
[378353019,1754834952177,-460.0,0.00020268,2]
[378353020,1754834952201,-460.0,0.00020268,2]
[378353021,1754834952223,-300.0,0.00020539,2]
[378353022,1754834952248,-850.69,0.0002054,2]
[378353023,1754834952271,-460.0,0.0002054,2]
[378353024,1754834952295,-460.0,0.0002054,2]
[378353025,1754834952319,-460.0,0.00020541,2]
[378353026,1754834952342,-460.0,0.00020541,2]
[378353027,1754834952365,-460.0,0.00020541,2]
[378353028,1754834952388,-460.0,0.00020542,2]
[378353029,1754834952411,-460.0,0.00020542,2]
[378353030,1754834952434,-460.0,0.00020542,2]
[378353031,1754834952456,-63.6111126,0.00020714,2]
[378353032,1754834957726,1962.77844236,0.00031464,120]
[378353090,1754835032509,-460.0,0.00019994,2]
[378353091,1754835032521,-343.79831121,0.00019994,2]
[378353092,1754835032534,-116.20168879,0.00019994,2]
[378353093,1754835032544,-137.08834121,0.00019994,2]
[378353108,1754835038316,-322.91165879,0.00019994,2]
[378353109,1754835038326,-460.0,0.00019994,2]
[378353110,1754835038336,-460.0,0.00019994,2]
[378353111,1754835038345,-460.0,0.00019994,2]
[378353112,1754835038355,-1278.69895749,0.00020085,2]
[378353113,1754835038365,-460.0,0.00020268,2]
[378353114,1754835038374,-460.0,0.00020268,2]
[378353115,1754835038384,-427.94042911,0.00020268,2]
[378353116,1754835038394,-460.0,0.00020268,2]
[378353117,1754835038404,-347.04771239,0.00020268,2]
[378353118,1754835038414,-115.46020993,0.0002054,2]
[378353119,1754835038426,-344.53979007,0.0002054,2]
[378353120,1754835038436,-460.0,0.0002054,2]
[378353121,1754835038446,-460.0,0.0002054,2]
[378353122,1754835038456,-460.0,0.00020541,2]
[378353123,1754835038465,-460.0,0.00020542,2]
[378353124,1754835038475,-467.99053142,0.00020542,2]
[378353125,1754835038484,-407.91542215,0.00020542,2]
[378353126,1754835038494,-850.69,0.00020814,2]
[378353127,1754835038503,-460.0,0.00020814,2]
[378353128,1754835038513,-460.0,0.00020814,2]
[378353129,1754835038523,-225.7226603,0.00020814,2]
[378353130,1754835038535,-234.2773397,0.00020814,2]
[378353131,1754835038545,-460.0,0.00020814,2]
[378353133,1754835038554,-460.0,0.00020815,2]
[378353134,1754835038564,-460.0,0.00020815,2]
[378353135,1754835038573,-460.0,0.00020815,2]
[378353136,1754835038583,-460.0,0.00020815,2]
[378353137,1754835038592,-460.0,0.00020816,2]
[378353138,1754835038603,-460.0,0.00020816,2]
[378353139,1754835038614,-850.69,0.00021088,2]
[378353140,1754835038624,-460.0,0.00021088,2]
[378353141,1754835038634,-78.04212568,0.00021088,2]
[378353335,1754835043160,-381.95787432,0.00021088,2]
[378353336,1754835043170,-460.0,0.00021088,2]
[378353337,1754835043180,-460.0,0.00021088,2]
[378353338,1754835043190,-460.0,0.00021089,2]
[378353339,1754835043200,-460.0,0.00021089,2]
[378353340,1754835043210,-460.0,0.00021089,2]
[378353341,1754835043220,-460.0,0.00021089,2]
[378353342,1754835043231,-460.0,0.0002109,2]
[378353343,1754835043241,-460.0,0.0002109,2]
[378353344,1754835043252,-261.57668677,0.00021248,2]
[378353345,1754835043262,-698.48993242,0.00021348,2]
[378353346,1754835043274,-144.59699798,0.00021348,2]
[378353347,1754835043283,-231.96268195,0.00021348,2]
[378353348,1754835043293,-160.0,0.00021348,2]
[378353349,1754835043303,-12668.57659669,0.00021348,2]
[378353350,1754835043312,-215.44987349,0.00021348,2]
[378353351,1754835043322,-461.62346162,0.00021348,2]
[378353352,1754835043331,-312.16666667,0.00021348,2]
[378353353,1754835043341,-160.0,0.00021348,2]
[378353354,1754835043350,-216.64838636,0.00021348,2]
[378353355,1754835043360,-160.0,0.00021348,2]
[378353356,1754835043370,-527.86640923,0.00021348,2]
[378353357,1754835043379,-460.0,0.00021362,2]
[378353358,1754835043389,-460.0,0.00021362,2]
[378353359,1754835043399,-460.0,0.00021362,2]
[378353360,1754835043411,-460.0,0.00021362,2]
[378353361,1754835043420,-460.0,0.00021363,2]
[378353362,1754835043429,-460.0,0.00021363,2]
[378353363,1754835043439,-460.0,0.00021363,2]
[378353364,1754835043448,-460.0,0.00021363,2]
[378353365,1754835043457,-460.0,0.00021364,2]
[378353366,1754835043467,-460.0,0.00021364,2]
[378353367,1754835043476,-200.0,0.00021566,15]
[378353369,1754835043485,-300.0,0.00021566,15]
[378353370,1754835043495,-460.0,0.00021636,2]
[378353372,1754835043504,-460.0,0.00021636,2]
[378353373,1754835043513,-460.0,0.00021636,2]
[378353375,1754835043523,-460.0,0.00021636,2]
[378353376,1754835043532,-460.0,0.00021637,2]
[378353377,1754835043541,-460.0,0.00021637,2]
[378353379,1754835043550,-460.0,0.00021637,2]
[378353380,1754835043559,-457.60635988,0.00021637,2]
[378353382,1754835043568,-460.0,0.00021638,2]
[378353384,1754835043578,-460.0,0.00021638,2]
[378353386,1754835043587,-460.0,0.0002191,2]
[378353388,1754835043596,-460.0,0.0002191,2]